fUSD/lending_fUSD_20250812
["ID","MTS","AMOUNT","RATE_DAILY","PERIOD"]
[378756381,1755003094506,-367.25364914,0.00042739,30]
[378756382,1755003094516,-400.0,0.00042739,30]
[378756383,1755003094525,-425.08,0.00042739,30]
[378756384,1755003094535,-400.0,0.00042739,30]
[378756385,1755003094546,-400.0,0.00042739,30]
[378756386,1755003094556,-400.0,0.00042739,30]
[378756387,1755003094566,-256.64955971,0.00042739,30]
[378756388,1755003094575,-400.0,0.00042739,30]
[378756389,1755003094585,-400.0,0.00042739,30]
[378756390,1755003094595,-400.0,0.00042739,30]
[378756391,1755003094604,-400.0,0.00042739,30]
[378756392,1755003094614,-400.0,0.00042739,30]
[378756393,1755003094624,-485.48,0.00042739,30]
[378756394,1755003094637,-400.0,0.00042739,30]
[378756395,1755003094646,-400.0,0.00042739,30]
[378756396,1755003094655,-400.0,0.00042739,30]
[378756397,1755003094666,-400.0,0.00042739,30]
[378756398,1755003094676,-400.0,0.00042739,30]
[378756399,1755003094686,-620.11,0.00042739,30]
[378756400,1755003094695,-422.97,0.00042739,30]
[378756401,1755003094706,-400.0,0.00042739,30]
[378756402,1755003094716,-400.0,0.00042739,30]
[378756403,1755003094725,-407.76,0.00042739,30]
[378756404,1755003094734,-400.0,0.00042739,30]
[378756405,1755003094744,-400.0,0.00042739,30]
[378756406,1755003094753,-400.0,0.00042739,30]
[378756407,1755003094763,-400.0,0.00042739,30]
[378756408,1755003094773,-400.0,0.00042739,30]
[378756409,1755003094783,-400.0,0.00042739,30]
[378756410,1755003094794,-400.0,0.00042739,30]
[378756411,1755003094804,-400.0,0.00042739,30]
[378756412,1755003094813,-400.0,0.00042739,30]
[378756413,1755003094823,-400.0,0.00042739,30]
[378756414,1755003094833,-400.0,0.00042739,30]
[378756415,1755003094843,-473.91,0.00042739,30]
[378756416,1755003094852,-400.0,0.00042739,30]
[378756417,1755003094862,-429.54,0.00042739,30]
[378756418,1755003094872,-400.0,0.00042739,30]
[378756419,1755003094883,-2095.41,0.00042739,30]
[378756420,1755003094893,-400.0,0.00042739,30]
[378756421,1755003094903,-400.0,0.00042739,30]
[378756422,1755003094913,-400.0,0.00042739,30]
[378756423,1755003094922,-400.0,0.00042739,30]
[378756424,1755003094932,-400.0,0.00042739,30]
[378756425,1755003094942,-400.0,0.00042739,30]
[378756426,1755003094951,-803.63,0.00042739,30]
[378756427,1755003094960,-403.57,0.00042739,30]
[378756428,1755003094970,-400.0,0.00042739,30]
[378756429,1755003094980,-400.0,0.00042739,30]
[378756430,1755003094989,-432.23,0.00042739,30]
[378756431,1755003094998,-400.0,0.00042739,30]
[378756432,1755003095008,-400.0,0.00042739,30]
[378756433,1755003095018,-248.22644208,0.00042739,30]
[378756434,1755003095027,-400.0,0.00042739,30]
[378756435,1755003095036,-495.70083356,0.00042739,30]
[378756436,1755003095046,-400.0,0.00042739,30]
[378756437,1755003095055,-400.0,0.00042739,30]
[378756438,1755003095065,-400.0,0.00042739,30]
[378756439,1755003095074,-400.0,0.00042739,30]
[378756440,1755003095084,-403.73,0.00042739,30]
[378756441,1755003095093,-506.69,0.00042739,30]
[378756442,1755003095102,-400.0,0.00042739,30]
[378756443,1755003095112,-400.0,0.00042739,30]
[378756444,1755003095121,-400.0,0.00042739,30]
[378756445,1755003095131,-400.0,0.00042739,30]
[378756446,1755003095140,-535.79,0.00042739,30]
[378756447,1755003095149,-400.0,0.00042739,30]
[378756448,1755003095159,-400.0,0.00042739,30]
[378756449,1755003095168,-400.0,0.00042739,30]
[378756450,1755003095177,-1369.1,0.00042739,30]
[378756451,1755003095187,-400.0,0.00042739,30]
[378756452,1755003095197,-400.0,0.00042739,30]
[378756453,1755003095206,-460.46,0.00042739,30]
[378756454,1755003095215,-1677.37,0.00042739,30]
[378756455,1755003095225,-400.0,0.00042739,30]
[378756456,1755003095234,-400.0,0.00042739,30]
[378756457,1755003095243,-400.0,0.00042739,30]
[378756458,1755003095253,-400.0,0.00042739,30]
[378756459,1755003095262,-400.0,0.00042739,30]
[378756460,1755003095271,-400.0,0.00042739,30]
[378756461,1755003095281,-638.32,0.00042739,30]
[378756462,1755003095292,-504.34487425,0.00042739,30]
[378756463,1755003095301,-400.0,0.00042739,30]
[378756464,1755003095310,-400.0,0.00042739,30]
[378756465,1755003095319,-557.52,0.00042739,30]
[378756466,1755003095328,-720.04,0.00042739,30]
[378756467,1755003095338,-445.80767963,0.00042739,30]
[378756468,1755003095347,-400.0,0.00042739,30]
[378756469,1755003095357,-405.71,0.00042739,30]
[378756470,1755003095366,-400.0,0.00042739,30]
[378756471,1755003095375,-400.0,0.00042739,30]
[378756472,1755003095385,-1407.52,0.00042739,30]
[378756473,1755003095394,-400.0,0.00042739,30]
[378756474,1755003095403,-400.0,0.00042739,30]
[378756475,1755003095413,-400.0,0.00042739,30]
[378756476,1755003095422,-671.93,0.00042739,30]
[378756477,1755003095431,-400.0,0.00042739,30]
[378756478,1755003095440,-535.29,0.00042739,30]
[378756479,1755003095450,-400.0,0.00042739,30]
[378756480,1755003095459,-400.0,0.00042739,30]
[378756481,1755003095468,-400.0,0.00042739,30]
[378756482,1755003095478,-537.89,0.00042739,30]
[378756483,1755003095488,-519.49,0.00042739,30]
[378756484,1755003095497,-641.09,0.00042739,30]
[378756485,1755003095508,-200.08319096,0.00042739,30]
[378756486,1755003095517,-697.03,0.00042739,30]
[378756487,1755003095526,-740.0,0.00042739,30]
[378756488,1755003095536,-400.0,0.00042739,30]
[378756489,1755003095546,-494.78,0.00042739,30]
[378756490,1755003095556,-400.0,0.00042739,30]
[378756491,1755003095565,-400.0,0.00042739,30]
[378756492,1755003095670,-400.0,0.00042739,30]
[378756493,1755003095680,-400.0,0.00042739,30]
[378756494,1755003095689,-595.64,0.00042739,30]
[378756495,1755003095699,-400.0,0.00042739,30]
[378756496,1755003095708,-695.15,0.00042739,30]
[378756497,1755003095718,-400.0,0.00042739,30]
[378756498,1755003095727,-400.0,0.00042739,30]
[378756499,1755003095738,-705.13,0.00042739,30]
[378756500,1755003095747,-400.0,0.00042739,30]
[378756501,1755003095757,-715.11,0.00042739,30]
[378756502,1755003095766,-469.65,0.00042739,30]
[378756503,1755003095775,-400.0,0.00042739,30]
[378756504,1755003095785,-400.0,0.00042739,30]
[378756505,1755003095796,-400.0,0.00042739,30]
[378756506,1755003095806,-832.68,0.00042739,30]
[378756507,1755003095816,-400.0,0.00042739,30]
[378756508,1755003095826,-400.0,0.00042739,30]
[378756509,1755003095836,-400.0,0.00042739,30]
[378756510,1755003095845,-549.29,0.00042739,30]
[378756511,1755003095855,-626.92,0.00042739,30]
[378756512,1755003095865,-400.0,0.00042739,30]
[378756513,1755003095874,-435.17,0.00042739,30]
[378756514,1755003095884,-400.0,0.00042739,30]
[378756515,1755003095893,-400.0,0.00042739,30]
[378756516,1755003095902,-400.0,0.00042739,30]
[378756517,1755003095912,-400.0,0.00042739,30]
[378756518,1755003095922,-400.0,0.00042739,30]
[378756519,1755003095932,-400.0,0.00042739,30]
[378756520,1755003095941,-400.0,0.00042739,30]
[378756521,1755003095951,-747.94,0.00042739,30]
[378756522,1755003095960,-400.0,0.00042739,30]
[378756523,1755003095969,-400.0,0.00042739,30]
[378756524,1755003095979,-400.0,0.00042739,30]
[378756525,1755003095988,-400.0,0.00042739,30]
[378756526,1755003095998,-400.0,0.00042739,30]
[378756527,1755003096007,-508.17,0.00042739,30]
[378756528,1755003096017,-400.0,0.00042739,30]
[378756529,1755003096026,-400.0,0.00042739,30]
[378756530,1755003096035,-400.0,0.00042739,30]
[378756531,1755003096046,-197.13,0.00042739,30]
[378756532,1755003096056,-493.89,0.00042739,30]
[378756533,1755003096066,-400.0,0.00042739,30]
[378756534,1755003096076,-400.0,0.00042739,30]
[378756535,1755003096085,-400.0,0.00042739,30]
[378756536,1755003096095,-569.03,0.00042739,30]
[378756537,1755003096105,-400.0,0.00042739,30]
[378756538,1755003096114,-1304.68,0.00042739,30]
[378756539,1755003096124,-472.71,0.00042739,30]
[378756540,1755003096134,-405.39305674,0.00042739,30]
[378756541,1755003096143,-400.0,0.00042739,30]
[378756542,1755003096153,-485.21,0.00042739,30]
[378756543,1755003096162,-400.0,0.00042739,30]
[378756544,1755003096172,-1427.73,0.00042739,30]
[378756545,1755003096181,-400.0,0.00042739,30]
[378756546,1755003096191,-400.0,0.00042739,30]
[378756547,1755003096201,-400.0,0.00042739,30]
[378756548,1755003096210,-312.40386056,0.00042739,30]
[378756549,1755003096220,-468.91417045,0.00042739,30]
[378756550,1755003096229,-400.0,0.00042739,30]
[378756551,1755003096238,-400.0,0.00042739,30]
[378756552,1755003096248,-400.0,0.00042739,30]
[378756553,1755003096257,-668.75,0.00042739,30]
[378756554,1755003096266,-400.0,0.00042739,30]
[378756555,1755003096277,-400.0,0.00042739,30]
[378756556,1755003096289,-400.0,0.00042739,30]
[378756557,1755003096299,-400.0,0.00042739,30]
[378756558,1755003096308,-1550.59,0.00042739,30]
[378756559,1755003096318,-273.7126075,0.00042739,30]
[378756560,1755003096328,-400.0,0.00042739,30]
[378756561,1755003096338,-400.0,0.00042739,30]
[378756562,1755003096348,-2263.04,0.00042739,30]
[378756563,1755003096358,-400.0,0.00042739,30]
[378756564,1755003096367,-801.81,0.00042739,30]
[378756565,1755003096377,-517.14,0.00042739,30]
[378756566,1755003096387,-400.0,0.00042739,30]
[378756567,1755003096396,-1000.0,0.00042739,2]
[378756568,1755003096406,-416.76,0.00042739,30]
[378756569,1755003096415,-606.34,0.00042739,7]
[378756570,1755003096425,-463.53,0.00042739,30]
[378756571,1755003096434,-400.0,0.00042739,30]
[378756572,1755003096444,-1058.21,0.00042739,30]
[378756573,1755003096453,-180.01282145,0.00042739,30]
[378756574,1755003096463,-400.0,0.00042739,30]
[378756575,1755003096472,-400.0,0.00042739,30]
[378756576,1755003096482,-400.0,0.00042739,30]
[378756577,1755003096491,-400.0,0.00042739,30]
[378756578,1755003096500,-400.0,0.00042739,30]
[378756579,1755003096509,-661.34,0.00042739,30]
[378756580,1755003096519,-400.0,0.00042739,30]
[378756581,1755003096528,-453.89,0.00042739,30]
[378756582,1755003096539,-3468.76,0.00042739,30]
[378756583,1755003096548,-747.81,0.00042739,30]
[378756584,1755003096558,-400.0,0.00042739,30]
[378756585,1755003096567,-413.27,0.00042739,30]
[378756586,1755003096576,-689.53,0.00042739,30]
[378756587,1755003096585,-567.5,0.00042739,30]
[378756588,1755003096595,-400.0,0.00042739,30]
[378756589,1755003096605,-414.54,0.00042739,30]
[378756590,1755003096616,-400.0,0.00042739,30]
[378756591,1755003096626,-3359.66,0.00042739,30]
[378756592,1755003096637,-400.0,0.00042739,30]
[378756593,1755003096646,-400.0,0.00042739,30]
[378756594,1755003096655,-449.21,0.00042739,30]
[378756595,1755003096665,-704.22,0.00042739,30]
[378756596,1755003096676,-405.05975989,0.00042739,30]
[378756597,1755003096686,-400.0,0.00042739,30]
[378756598,1755003096695,-400.0,0.00042739,30]
[378756599,1755003096706,-400.0,0.00042739,30]
[378756600,1755003096716,-400.0,0.00042739,30]
[378756601,1755003096726,-400.0,0.00042739,30]
[378756602,1755003096735,-632.29,0.00042739,30]
[378756603,1755003096745,-466.87,0.00042739,30]
[378756604,1755003096754,-510.0161246,0.00042739,30]
[378756605,1755003096763,-400.0,0.00042739,30]
[378756606,1755003096773,-494.37,0.00042739,30]
[378756607,1755003096782,-400.0,0.00042739,30]
[378756608,1755003096792,-400.0,0.00042739,30]
[378756609,1755003096802,-601.38,0.00042739,30]
[378756610,1755003096811,-400.0,0.00042739,30]
[378756611,1755003096820,-400.0,0.00042739,30]
[378756612,1755003096830,-710.1,0.00042739,30]
[378756613,1755003096839,-400.0,0.00042739,30]
[378756614,1755003096849,-400.0,0.00042739,30]
[378756615,1755003096858,-400.0,0.00042739,30]
[378756616,1755003096868,-400.0,0.00042739,30]
[378756617,1755003096877,-400.0,0.00042739,30]
[378756618,1755003096886,-929.42,0.00042739,30]
[378756619,1755003096895,-207.9935333,0.00042739,30]
[378756620,1755003096904,-400.0,0.00042739,30]
[378756621,1755003096914,-654.03,0.00042739,30]
[378756622,1755003096922,-400.0,0.00042739,30]
[378756623,1755003096932,-400.0,0.00042739,30]
[378756624,1755003096942,-400.0,0.00042739,30]
[378756625,1755003096951,-683.7,0.00042739,30]
[378756626,1755003096960,-727.2,0.00042739,30]
[378756627,1755003096970,-1130.55,0.00042739,30]
[378756628,1755003096979,-400.0,0.00042739,30]
[378756629,1755003096989,-400.0,0.00042739,30]
[378756630,1755003096998,-400.0,0.00042739,30]
[378756631,1755003097007,-400.0,0.00042739,30]
[378756632,1755003097017,-400.0,0.00042739,30]
[378756633,1755003097027,-693.76,0.00042739,30]
[378756634,1755003097036,-400.0,0.00042739,30]
[378756635,1755003097048,-2521.4,0.00042739,30]
[378756636,1755003097058,-765.99,0.00042739,30]
[378756637,1755003097067,-400.0,0.00042739,30]
[378756638,1755003097076,-408.27,0.00042739,30]
[378756639,1755003097086,-400.0,0.00042739,30]
[378756640,1755003097096,-674.11,0.00042739,30]
[378756641,1755003097105,-406.75546961,0.00042739,30]
[378756642,1755003097114,-463.15,0.00042739,30]
[378756643,1755003097124,-515.85,0.00042739,30]
[378756644,1755003097134,-405.37822868,0.00042739,30]
[378756645,1755003097143,-225.99,0.00042739,30]
[378756646,1755003097153,-400.0,0.00042739,14]
[378756647,1755003097256,-400.0,0.00042739,30]
[378756648,1755003097266,-400.0,0.00042739,30]
[378756649,1755003097275,-726.38,0.00042739,30]
[378756650,1755003097285,-400.0,0.00042739,30]
[378756651,1755003097296,-400.0,0.00042739,30]
[378756652,1755003097305,-1713.36,0.00042739,30]
[378756653,1755003097315,-564.91,0.00042739,30]
[378756654,1755003097325,-461.85,0.00042739,30]
[378756655,1755003097335,-622.29,0.00042739,30]
[378756656,1755003097344,-576.83,0.00042739,30]
[378756657,1755003097353,-558.07,0.00042739,30]
[378756658,1755003097363,-400.0,0.00042739,30]
[378756659,1755003097372,-400.0,0.00042739,30]
[378756660,1755003097382,-400.0,0.00042739,30]
[378756661,1755003097391,-400.0,0.00042739,30]
[378756662,1755003097401,-400.0,0.00042739,30]
[378756663,1755003097411,-400.0,0.00042739,30]
[378756664,1755003097420,-756.4,0.00042739,30]
[378756665,1755003097430,-400.0,0.00042739,30]
[378756666,1755003097440,-471.31,0.00042739,30]
[378756667,1755003097450,-400.0,0.00042739,30]
[378756668,1755003097460,-462.1,0.00042739,30]
[378756669,1755003097470,-400.0,0.00042739,30]
[378756670,1755003097479,-400.0,0.00042739,30]
[378756671,1755003097489,-406.58186802,0.00042739,30]
[378756672,1755003097499,-400.0,0.00042739,30]
[378756673,1755003097509,-555.74,0.00042739,30]
[378756674,1755003097519,-740.93,0.00042739,30]
[378756675,1755003097532,-400.0,0.00042739,30]
[378756676,1755003097543,-400.0,0.00042739,30]
[378756677,1755003097553,-400.0,0.00042739,30]
[378756678,1755003097563,-440.15,0.00042739,30]
[378756679,1755003097572,-400.0,0.00042739,30]
[378756680,1755003097582,-400.0,0.00042739,30]
[378756681,1755003097592,-413.22,0.00042739,30]
[378756682,1755003097602,-400.0,0.00042739,30]
[378756683,1755003097612,-400.0,0.00042739,30]
[378756684,1755003097622,-500.0,0.0004274,5]
[378756685,1755003097634,-778.98728017,0.00042851,15]
[378756686,1755003097643,-3399.17565231,0.00042866,15]
[378756687,1755003097652,-1457.0,0.00042869,30]
[378756688,1755003097662,-154.2516406,0.0004289,15]
[378756689,1755003097672,-168.0,0.00042909,7]
[378756690,1755003097681,-323.51794027,0.00043,120]
[378756691,1755003097691,-1011.4150188,0.00043,120]
[378756692,1755003097700,-500.0,0.00043012,30]
[378756693,1755003097710,-1071.3,0.00043012,30]
[378756694,1755003097720,-500.0,0.00043012,30]
[378756695,1755003097729,-299.11300545,0.00043012,2]
[378756696,1755003097739,-335.26,0.00043012,30]
[378756697,1755003097748,-737.87,0.00043012,30]
[378756698,1755003097758,-682.48,0.00043012,30]
[378756699,1755003097767,-597.51,0.00043012,30]
[378756700,1755003097777,-1807.39,0.00043012,30]
[378756701,1755003097787,-1894.03,0.00043012,30]
[378756702,1755003097798,-400.0,0.00043013,30]
[378756703,1755003097808,-400.0,0.00043013,30]
[378756704,1755003097817,-400.0,0.00043013,30]
[378756705,1755003097826,-400.0,0.00043013,30]
[378756706,1755003097836,-646.53,0.00043013,30]
[378756707,1755003097846,-400.0,0.00043013,30]
[378756708,1755003097855,-400.0,0.00043013,30]
[378756709,1755003097864,-400.0,0.00043013,30]
[378756710,1755003097873,-400.0,0.00043013,30]
[378756711,1755003097883,-400.0,0.00043013,30]
[378756712,1755003097892,-400.0,0.00043013,30]
[378756713,1755003097902,-400.0,0.00043013,30]
[378756714,1755003097911,-400.0,0.00043013,30]
[378756715,1755003097921,-400.0,0.00043013,30]
[378756716,1755003097930,-400.0,0.00043013,30]
[378756717,1755003097940,-400.0,0.00043013,30]
[378756718,1755003097955,-400.0,0.00043013,30]
[378756719,1755003097972,-400.0,0.00043013,30]
[378756720,1755003097990,-400.0,0.00043013,30]
[378756721,1755003098008,-400.0,0.00043013,30]
[378756722,1755003098024,-400.0,0.00043013,30]
[378756723,1755003098040,-549.60559645,0.00043013,30]
[378756724,1755003098058,-400.0,0.00043013,30]
[378756725,1755003098075,-552.24,0.00043013,30]
[378756726,1755003098095,-400.0,0.00043013,30]
[378756727,1755003098112,-400.0,0.00043013,30]
[378756728,1755003098130,-411.53,0.00043013,30]
[378756729,1755003098145,-450.96085257,0.00043013,30]
[378756730,1755003098159,-400.0,0.00043013,30]
[378756731,1755003098176,-400.0,0.00043013,30]
[378756732,1755003098191,-400.0,0.00043013,30]
[378756733,1755003098207,-687.38,0.00043013,30]
[378756734,1755003098222,-400.0,0.00043013,30]
[378756735,1755003098236,-400.0,0.00043013,30]
[378756736,1755003098251,-400.0,0.00043013,30]
[378756737,1755003098265,-400.0,0.00043013,30]
[378756738,1755003098279,-400.0,0.00043013,30]
[378756739,1755003098293,-400.0,0.00043013,30]
[378756740,1755003098307,-648.2,0.00043013,30]
[378756741,1755003098320,-365.65699329,0.00043013,30]
[378756742,1755003098335,-400.0,0.00043013,30]
[378756743,1755003098349,-400.0,0.00043013,30]
[378756744,1755003098364,-400.0,0.00043013,30]
[378756745,1755003098377,-400.0,0.00043013,30]
[378756746,1755003098392,-400.0,0.00043013,30]
[378756747,1755003098406,-400.0,0.00043013,30]
[378756748,1755003098422,-400.0,0.00043013,30]
[378756749,1755003098436,-400.0,0.00043013,30]
[378756750,1755003098451,-400.0,0.00043013,30]
[378756751,1755003098466,-424.7,0.00043013,30]
[378756752,1755003098481,-541.9,0.00043013,30]
[378756753,1755003098495,-268.653618,0.00043013,30]
[378756754,1755003098510,-400.0,0.00043013,30]
[378756755,1755003098524,-565.63,0.00043013,30]
[378756756,1755003098539,-400.0,0.00043013,30]
[378756757,1755003098553,-400.0,0.00043013,30]
[378756758,1755003098568,-592.88,0.00043013,30]
[378756759,1755003098583,-400.0,0.00043013,30]
[378756760,1755003098597,-4791.08,0.00043013,30]
[378756761,1755003098612,-400.0,0.00043013,30]
[378756762,1755003098627,-400.0,0.00043013,30]
[378756763,1755003098642,-400.0,0.00043013,30]
[378756764,1755003098657,-400.0,0.00043013,30]
[378756765,1755003098672,-400.0,0.00043013,30]
[378756766,1755003098687,-279.4266785,0.00043013,30]
[378756767,1755003098702,-475.4,0.00043013,30]
[378756768,1755003098717,-421.82,0.00043013,30]
[378756769,1755003098731,-400.0,0.00043013,30]
[378756770,1755003098745,-400.0,0.00043013,30]
[378756771,1755003098762,-157.703964,0.00043013,30]
[378756772,1755003098777,-275.36456,0.00043013,30]
[378756773,1755003098792,-193.6,0.00043013,30]
[378756774,1755003098807,-432.57,0.00043013,30]
[378756775,1755003098821,-400.0,0.00043013,30]
[378756776,1755003098837,-419.5,0.00043013,30]
[378756777,1755003098852,-400.0,0.00043013,30]
[378756778,1755003098867,-400.0,0.00043013,30]
[378756779,1755003098881,-400.0,0.00043013,30]
[378756780,1755003098896,-400.0,0.00043013,30]
[378756781,1755003098911,-400.0,0.00043013,30]
[378756782,1755003098927,-400.0,0.00043013,30]
[378756783,1755003098941,-400.0,0.00043013,30]
[378756784,1755003098957,-400.0,0.00043013,30]
[378756785,1755003098971,-400.0,0.00043013,30]
[378756786,1755003098986,-400.0,0.00043013,30]
[378756787,1755003099001,-440.88155173,0.00043013,30]
[378756788,1755003099152,-500.94,0.00043013,30]
[378756789,1755003099168,-400.0,0.00043013,30]
[378756790,1755003099178,-649.81,0.00043013,30]
[378756791,1755003099188,-400.0,0.00043013,30]
[378756792,1755003099196,-400.0,0.00043013,30]
[378756793,1755003099206,-400.0,0.00043013,30]
[378756794,1755003099215,-400.0,0.00043013,30]
[378756795,1755003099223,-400.0,0.00043013,30]
[378756796,1755003099232,-400.0,0.00043013,30]
[378756797,1755003099241,-400.0,0.00043013,30]
[378756798,1755003099251,-400.0,0.00043013,30]
[378756799,1755003099261,-656.69,0.00043013,30]
[378756800,1755003099270,-469.11,0.00043013,30]
[378756801,1755003099280,-426.91,0.00043013,30]
[378756802,1755003099292,-400.0,0.00043013,30]
[378756803,1755003099302,-400.0,0.00043013,30]
[378756804,1755003099311,-400.0,0.00043013,30]
[378756805,1755003099321,-400.0,0.00043013,30]
[378756806,1755003099331,-400.0,0.00043013,30]
[378756807,1755003099341,-400.0,0.00043013,30]
[378756808,1755003099350,-400.0,0.00043013,30]
[378756809,1755003099360,-538.67563144,0.00043013,30]
[378756810,1755003099369,-179.70138847,0.00043013,30]
[378756811,1755003099379,-400.0,0.00043013,30]
[378756812,1755003099388,-400.0,0.00043013,30]
[378756813,1755003099398,-428.64925857,0.00043013,30]
[378756814,1755003099407,-174.03386523,0.00043013,30]
[378756815,1755003099416,-407.69,0.00043013,30]
[378756816,1755003099425,-400.0,0.00043013,30]
[378756817,1755003099435,-400.0,0.00043013,30]
[378756818,1755003099444,-400.0,0.00043013,30]
[378756819,1755003099453,-643.28,0.00043013,30]
[378756820,1755003099463,-400.0,0.00043013,30]
[378756821,1755003099472,-425.08,0.00043013,30]
[378756822,1755003099481,-400.0,0.00043013,30]
[378756823,1755003099490,-400.0,0.00043013,30]
[378756824,1755003099499,-400.0,0.00043013,30]
[378756825,1755003099509,-400.0,0.00043013,30]
[378756826,1755003099518,-400.0,0.00043013,30]
[378756827,1755003099527,-400.0,0.00043013,30]
[378756828,1755003099537,-400.0,0.00043013,30]
[378756829,1755003099548,-400.0,0.00043013,30]
[378756830,1755003099557,-485.48,0.00043013,30]
[378756831,1755003099566,-400.0,0.00043013,30]
[378756832,1755003099576,-400.0,0.00043013,30]
[378756833,1755003099586,-400.0,0.00043013,30]
[378756834,1755003099595,-400.0,0.00043013,30]
[378756835,1755003099605,-400.0,0.00043013,30]
[378756836,1755003099615,-620.11,0.00043013,30]
[378756837,1755003099627,-422.97,0.00043013,30]
[378756838,1755003099637,-400.0,0.00043013,30]
[378756839,1755003099646,-305.34148722,0.00043013,30]
[378756840,1755003099656,-407.76,0.00043013,30]
[378756841,1755003099666,-400.0,0.00043013,30]
[378756842,1755003099675,-400.0,0.00043013,30]
[378756843,1755003099684,-381.08481461,0.00043013,30]
[378756844,1755003099694,-400.0,0.00043013,30]
[378756845,1755003099703,-400.0,0.00043013,30]
[378756846,1755003099714,-400.0,0.00043013,30]
[378756847,1755003099723,-400.0,0.00043013,30]
[378756848,1755003099735,-400.0,0.00043013,30]
[378756849,1755003099745,-400.0,0.00043013,30]
[378756850,1755003099755,-400.0,0.00043013,30]
[378756851,1755003099764,-400.0,0.00043013,30]
[378756852,1755003099774,-473.91,0.00043013,30]
[378756853,1755003099783,-400.0,0.00043013,30]
[378756854,1755003099794,-429.54,0.00043013,30]
[378756855,1755003099803,-400.0,0.00043013,30]
[378756856,1755003099813,-2095.41,0.00043013,30]
[378756857,1755003099823,-400.0,0.00043013,30]
[378756858,1755003099834,-400.0,0.00043013,30]
[378756859,1755003099844,-400.0,0.00043013,30]
[378756860,1755003099854,-400.0,0.00043013,30]
[378756861,1755003099863,-357.0327298,0.00043013,30]
[378756862,1755003099873,-400.0,0.00043013,30]
[378756863,1755003099882,-803.63,0.00043013,30]
[378756864,1755003099892,-403.57,0.00043013,30]
[378756865,1755003099902,-400.0,0.00043013,30]
[378756866,1755003099912,-280.12521629,0.00043013,30]
[378756867,1755003099921,-432.23,0.00043013,30]
[378756868,1755003099931,-400.0,0.00043013,30]
[378756869,1755003099940,-400.0,0.00043013,30]
[378756870,1755003099950,-400.0,0.00043013,30]
[378756871,1755003099960,-400.0,0.00043013,30]
[378756872,1755003099969,-400.0,0.00043013,30]
[378756873,1755003099979,-400.0,0.00043013,30]
[378756874,1755003099988,-400.0,0.00043013,30]
[378756875,1755003099998,-403.73,0.00043013,30]
[378756876,1755003100007,-506.69,0.00043013,30]
[378756877,1755003100016,-400.0,0.00043013,30]
[378756878,1755003100025,-400.0,0.00043013,30]
[378756879,1755003100035,-286.43283604,0.00043013,30]
[378756880,1755003100045,-400.0,0.00043013,30]